[Event "FIDE World Rapid-ch Open 2018"]
[White "Ragger, Markus"]
[Black "Mikhalevski, Victor"]
[Site "St. Petersburg"]
[Round "4.53"]
[Annotator "ChessBase"]
[Result "1-0"]
[Date "2018.12.26"]
[WhiteElo "2687"]
[BlackElo "2579"]
[PlyCount "144"]
[TimeControl "900+10"]

1. e4 {[%emt 0:0:0]} e5 {[%emt 0:0:0]} 2. Nf3 {[%emt 0:0:0]} Nc6 {[%emt 0:0:0]
} 3. Bc4 {[%emt 0:0:0]} Bc5 {[%emt 0:0:0]} 4. d3 {[%emt 0:0:0]} Nf6 {[%emt 0:0:1]} 5. 0-0 {[%emt 0:0:0]} 0-0 {[%emt 0:0:5]} 6. c3 {[%emt 0:0:19]
} d5 {[%emt 0:0:14]} 7. exd5 {[%emt 0:0:2]} Nxd5 {[%emt 0:0:0]} 8. a4 {[%emt 0:0:0]} a5 {[%emt 0:0:11]} 9. Re1 {[%emt 0:0:7]} Bg4 {[%emt 0:0:9]
} 10. Nbd2 {[%emt 0:0:5]} Nb6 {[%emt 0:1:36]} 11. Bb5 {[%emt 0:0:3]
} Bd6 {[%emt 0:0:9]} 12. Ne4 {[%emt 0:0:17]} Na7 {[%emt 0:0:0]} 13. h3 {[%emt 0:0:8]} Bh5 {[%emt 0:0:4]} 14. d4 {[%emt 0:0:2]} Nxb5 {[%emt 0:0:8]} 15. axb5 {[%emt 0:0:1]} f6 {[%emt 0:1:6]} 16. Be3 {[%emt 0:0:29]
} Nc4 {[%emt 0:0:5]} 17. Qa4 {[%emt 0:0:18]} Bf7 {[%emt 0:0:0]} 18. dxe5 {[%emt 0:1:2]} Bxe5 {[%emt 0:0:34]} 19. Nxe5 {[%emt 0:0:15]} Nxe5 {[%emt 0:0:21]} 20. Rad1 {[%emt 0:0:8]} Qc8 {[%emt 0:0:21]} 21. Bd4 {[%emt 0:0:2]
} Nc4 {[%emt 0:0:21]} 22. Bxf6 {[%emt 0:2:53]} gxf6 {[%emt 0:0:0]} 23. Nxf6+ {[%emt 0:0:3]} Kh8 {[%emt 0:0:20]} 24. Rd7 {[%emt 0:7:33]
} Bg8 {[%emt 0:0:51]} 25. Qxc4 {[%emt 0:0:37]} Qxd7 {[%emt 0:1:40]} 26. Qxg8+ {[%emt 0:0:1]} Rxg8 {[%emt 0:0:2]} 27. Nxd7 {[%emt 0:0:1]} Rad8 {[%emt 0:0:18]
} 28. Ne5 {[%emt 0:1:14]} Rd2 {[%emt 0:0:28]} 29. Nc4 {[%emt 0:0:0]} Rd5 {[%emt 0:0:18]} 30. Nxa5 {[%emt 0:0:22]} Rxb5 {[%emt 0:0:8]} 31. b4 {[%emt 0:0:12]} Rg6 {[%emt 0:1:26]} 32. Re8+ {[%emt 0:0:20]} Rg8 {[%emt 0:0:2]
} 33. Re3 {[%emt 0:0:6]} Rg6 {[%emt 0:0:5]} 34. g4 {[%emt 0:0:0]} b6 {[%emt 0:0:7]} 35. Nc4 {[%emt 0:0:42]} Rd5 {[%emt 0:0:34]} 36. Kg2 {[%emt 0:0:12]} b5 {[%emt 0:0:57]} 37. Ne5 {[%emt 0:0:1]} Ra6 {[%emt 0:0:0]} 38. Nd3 {[%emt 0:0:6]} Kg8 {[%emt 0:0:30]} 39. Nc5 {[%emt 0:0:8]} Rf6 {[%emt 0:0:18]} 40. Kg3 {[%emt 0:0:20]} Rd1 {[%emt 0:0:19]} 41. Ne4 {[%emt 0:0:11]
} Rf8 {[%emt 0:0:37]} 42. f4 {[%emt 0:0:6]} Rg1+ {[%emt 0:0:0]} 43. Kf2 {[%emt 0:0:1]} Rh1 {[%emt 0:0:23]} 44. f5 {[%emt 0:0:1]} Ra8 {[%emt 0:0:7]} 45. Kg3 {[%emt 0:0:0]} Raa1 {[%emt 0:0:0]} 46. Nf6+ {[%emt 0:0:3]
} Kg7 {[%emt 0:0:16]} 47. Nh5+ {[%emt 0:0:21]} Kf7 {[%emt 0:0:0]} 48. Re6 {[%emt 0:0:4]} Rad1 {[%emt 0:0:20]} 49. Rc6 {[%emt 0:0:18]} Rd3+ {[%emt 0:0:18]} 50. Kf4 {[%emt 0:0:1]} Rhxh3 {[%emt 0:0:43]} 51. Rxc7+ {[%emt 0:0:2]} Kf8 {[%emt 0:0:7]} 52. Rxh7 {[%emt 0:0:25]} Rxc3 {[%emt 0:0:0]} 53. Kg5 {[%emt 0:0:10]} Rc4 {[%emt 0:0:23]} 54. Rb7 {[%emt 0:0:7]} Rxb4 {[%emt 0:0:32]} 55. Nf4 {[%emt 0:0:56]} Re3 {[%emt 0:0:25]} 56. Ng6+ {[%emt 0:0:24]
} Ke8 {[%emt 0:0:6]} 57. f6 {[%emt 0:0:1]} Rf3 {[%emt 0:0:0]} 58. Re7+ {[%emt 0:0:9]} Kd8 {[%emt 0:0:1]} 59. f7 {[%emt 0:0:9]} Rc4 {[%emt 0:0:26]} 60. Re8+ {[%emt 0:0:8]} Kc7 {[%emt 0:0:1]} 61. f8=Q {[%emt 0:0:42]
} Rxf8 {[%emt 0:0:3]} 62. Rxf8 {[%emt 0:0:5]} b4 {[%emt 0:0:0]} 63. Rf3 {[%emt 0:0:1]} Kd6 {[%emt 0:0:6]} 64. Nf4 {[%emt 0:0:11]} Rc5+ {[%emt 0:0:40]} 65. Kf6 {[%emt 0:0:5]} Rb5 {[%emt 0:0:9]} 66. Rb3 {[%emt 0:0:6]
} Rb8 {[%emt 0:0:12]} 67. Nd3 {[%emt 0:0:9]} Rf8+ {[%emt 0:0:0]} 68. Kg5 {[%emt 0:0:7]} Rf3 {[%emt 0:0:2]} 69. Nc1 {[%emt 0:0:26]} Rf1 {[%emt 0:0:2]} 70. Na2 {[%emt 0:0:6]} Kc5 {[%emt 0:0:10]} 71. Rxb4 {[%emt 0:0:0]
} Rf2 {[%emt 0:0:0]} 72. Ra4 {[%emt 0:0:0]} Kd5 1-0

[Event "FIDE World Rapid-ch Open 2018"]
[White "Sokolov, Andrei"]
[Black "Amin, Bassem"]
[Site "St. Petersburg"]
[Round "4.54"]
[Annotator "ChessBase"]
[Result "0-1"]
[Date "2018.12.26"]
[WhiteElo "2532"]
[BlackElo "2710"]
[PlyCount "126"]
[TimeControl "900+10"]

1. Nf3 {[%emt 0:0:0]} Nf6 {[%emt 0:0:0]} 2. g3 {[%emt 0:0:0]} g6 {[%emt 0:0:0]
} 3. Bg2 {[%emt 0:0:0]} Bg7 {[%emt 0:0:0]} 4. 0-0 {[%emt 0:0:0]} 0-0 {[%emt 0:0:1]} 5. c4 {[%emt 0:0:0]} d6 {[%emt 0:0:3]} 6. Nc3 {[%emt 0:0:4]} e5 {[%emt 0:0:2]} 7. d3 {[%emt 0:0:9]} c6 {[%emt 0:0:2]} 8. Rb1 {[%emt 0:0:7]} a5 {[%emt 0:0:12]} 9. a3 {[%emt 0:0:2]} Re8 {[%emt 0:0:2]
} 10. b4 {[%emt 0:0:18]} axb4 {[%emt 0:0:2]} 11. axb4 {[%emt 0:0:1]
} h6 {[%emt 0:0:5]} 12. b5 {[%emt 0:0:51]} d5 {[%emt 0:0:40]} 13. bxc6 {[%emt 0:0:26]} bxc6 {[%emt 0:0:2]} 14. cxd5 {[%emt 0:4:22]} Nxd5 {[%emt 0:0:7]} 15. Nxd5 {[%emt 0:1:18]} cxd5 {[%emt 0:0:3]} 16. Nd2 {[%emt 0:1:22]
} Nc6 {[%emt 0:0:12]} 17. Bb2 {[%emt 0:0:13]} Be6 {[%emt 0:0:0]} 18. e3 {[%emt 0:2:49]} Qd6 {[%emt 0:0:35]} 19. Ra1 {[%emt 0:0:17]} Reb8 {[%emt 0:5:44]} 20. Qe2 {[%emt 0:2:17]} Rxa1 {[%emt 0:0:11]} 21. Bxa1 {[%emt 0:0:0]
} Qa3 {[%emt 0:0:3]} 22. f4 {[%emt 0:1:0]} Nb4 {[%emt 0:0:0]} 23. fxe5 {[%emt 0:0:38]} Qxd3 {[%emt 0:0:34]} 24. Qxd3 {[%emt 0:0:6]} Nxd3 {[%emt 0:0:2]} 25. Nf3 {[%emt 0:0:4]} Ra8 {[%emt 0:0:26]} 26. Bd4 {[%emt 0:0:21]
} g5 {[%emt 0:0:24]} 27. h3 {[%emt 0:0:41]} Ra2 {[%emt 0:1:11]
} 28. g4 {[%emt 0:0:9]} Bf8 {[%emt 0:1:9]} 29. Ra1 {[%emt 0:0:15]} Rxa1+ {[%emt 0:0:47]
} 30. Bxa1 {[%emt 0:0:1]} Bb4 {[%emt 0:0:12]} 31. Bd4 {[%emt 0:0:15]
} Kg7 {[%emt 0:0:1]} 32. Kf1 {[%emt 0:0:37]} Kg6 {[%emt 0:0:0]} 33. Ke2 {[%emt 0:0:10]} Nc1+ {[%emt 0:0:11]} 34. Kd1 {[%emt 0:0:6]} Nb3 {[%emt 0:0:1]} 35. Ke2 {[%emt 0:0:19]} h5 {[%emt 0:0:11]} 36. gxh5+ {[%emt 0:0:27]
} Kxh5 {[%emt 0:0:2]} 37. Kf2 {[%emt 0:0:1]} Kg6 {[%emt 0:0:0]} 38. Bf1 {[%emt 0:0:9]} Bf5 {[%emt 0:0:6]} 39. Ng1 {[%emt 0:0:47]} Nd2 {[%emt 0:0:25]} 40. Bg2 {[%emt 0:0:6]} Ne4+ {[%emt 0:0:9]} 41. Bxe4 {[%emt 0:0:5]
} dxe4 {[%emt 0:0:6]} 42. Kg2 {[%emt 0:0:1]} Kh5 {[%emt 0:0:0]} 43. Kg3 {[%emt 0:0:32]} Be1+ {[%emt 0:0:4]} 44. Kg2 {[%emt 0:0:0]} Kh4 {[%emt 0:0:3]} 45. Bb2 {[%emt 0:0:1]} Be6 {[%emt 0:0:17]} 46. Bd4 {[%emt 0:0:5]
} Bc4 {[%emt 0:0:31]} 47. Bb2 {[%emt 0:0:4]} Kh5 {[%emt 0:0:0]} 48. Bd4 {[%emt 0:0:16]} Kg6 {[%emt 0:0:2]} 49. e6 {[%emt 0:0:15]} Bxe6 {[%emt 0:0:13]} 50. Ne2 {[%emt 0:0:5]} f5 {[%emt 0:0:49]} 51. Bc3 {[%emt 0:0:0]} Bh4 {[%emt 0:0:2]} 52. Be5 {[%emt 0:0:11]} Bc4 {[%emt 0:0:44]} 53. Ng3 {[%emt 0:0:14]} Bb3 {[%emt 0:0:3]} 54. Ne2 {[%emt 0:0:10]} Bd1 {[%emt 0:0:5]
} 55. Nd4 {[%emt 0:0:2]} Be1 {[%emt 0:0:7]} 56. Nc6 {[%emt 0:0:0]} Bd2 {[%emt 0:0:11]} 57. Kf2 {[%emt 0:0:15]} f4 {[%emt 0:0:12]} 58. Bd4 {[%emt 0:0:3]} Kh5 {[%emt 0:0:18]} 59. Ne7 {[%emt 0:0:34]} Kh4 {[%emt 0:0:9]
} 60. Nd5 {[%emt 0:0:12]} Kxh3 {[%emt 0:0:14]} 61. Nf6 {[%emt 0:0:8]
} Bf3 {[%emt 0:0:8]} 62. Nd5 {[%emt 0:0:13]} Bg4 {[%emt 0:0:0]} 63. Bc3 {[%emt 0:0:25]} fxe3+ {[%emt 0:0:7]} 0-1

[Event "FIDE World Rapid-ch Open 2018"]
[White "Antipov, Mikhail Al."]
[Black "Zhigalko, Andrey"]
[Site "St. Petersburg"]
[Round "4.55"]
[Annotator "ChessBase"]
[Result "1-0"]
[Date "2018.12.26"]
[WhiteElo "2589"]
[BlackElo "2545"]
[PlyCount "139"]
[TimeControl "900+10"]

1. e4 {[%emt 0:0:0]} c5 {[%emt 0:0:0]} 2. Nf3 {[%emt 0:0:0]} d6 {[%emt 0:0:0]} 3. Bb5+ {[%emt 0:0:0]} Bd7 {[%emt 0:0:0]} 4. c4 {[%emt 0:0:0]} Nf6 {[%emt 0:0:0]} 5. Nc3 {[%emt 0:0:0]} g6 {[%emt 0:0:0]} 6. 0-0 {[%emt 0:0:4]
} Bg7 {[%emt 0:0:2]} 7. d4 {[%emt 0:0:11]} cxd4 {[%emt 0:0:0]} 8. Nxd4 {[%emt 0:0:6]} 0-0 {[%emt 0:0:3]} 9. Bxd7 {[%emt 0:0:34]} Qxd7 {[%emt 0:0:39]} 10. Qe2 {[%emt 0:0:15]} Nc6 {[%emt 0:2:23]} 11. Nf3 {[%emt 0:0:6]
} a6 {[%emt 0:3:33]} 12. Bd2 {[%emt 0:1:29]} e6 {[%emt 0:0:56]
} 13. Rfd1 {[%emt 0:0:45]} Rfd8 {[%emt 0:0:47]} 14. Bg5 {[%emt 0:1:35]} h6 {[%emt 0:1:37]
} 15. Bf4 {[%emt 0:0:8]} Qe7 {[%emt 0:0:10]} 16. h3 {[%emt 0:0:0]} Rac8 {[%emt 0:0:25]} 17. Rac1 {[%emt 0:0:8]} Kh7 {[%emt 0:2:26]} 18. b3 {[%emt 0:0:9]} Ne8 {[%emt 0:0:24]} 19. Na4 {[%emt 0:0:26]} Ne5 {[%emt 0:1:27]
} 20. Nxe5 {[%emt 0:0:36]} Bxe5 {[%emt 0:0:5]} 21. Be3 {[%emt 0:0:47]
} Rc6 {[%emt 0:0:32]} 22. Rc2 {[%emt 0:1:4]} Qc7 {[%emt 0:0:0]} 23. Rcd2 {[%emt 0:0:19]} Rb8 {[%emt 0:0:19]} 24. c5 {[%emt 0:0:29]} Rd8 {[%emt 0:0:53]} 25. Rd3 {[%emt 0:0:47]} Bf6 {[%emt 0:0:9]} 26. Qd2 {[%emt 0:0:6]
} Be7 {[%emt 0:0:14]} 27. Bxh6 {[%emt 0:0:16]} Nf6 {[%emt 0:0:0]} 28. Qf4 {[%emt 0:3:44]} e5 {[%emt 0:0:11]} 29. Qh4 {[%emt 0:0:7]} Nh5 {[%emt 0:0:4]} 30. Bg5 {[%emt 0:0:1]} Bxg5 {[%emt 0:0:15]} 31. Qxg5 {[%emt 0:0:1]
} Nf4 {[%emt 0:0:11]} 32. R3d2 {[%emt 0:1:14]} Ne6 {[%emt 0:0:0]} 33. Qh4+ {[%emt 0:1:24]} Kg7 {[%emt 0:0:1]} 34. Nc3 {[%emt 0:0:2]} Rh8 {[%emt 0:0:15]} 35. Qg3 {[%emt 0:0:15]} Rxc5 {[%emt 0:0:17]} 36. Nd5 {[%emt 0:0:24]
} Qd8 {[%emt 0:0:4]} 37. Ne3 {[%emt 0:0:7]} Nd4 {[%emt 0:0:0]} 38. Nf5+ {[%emt 0:0:2]} Nxf5 {[%emt 0:0:2]} 39. exf5 {[%emt 0:0:1]} Qh4 {[%emt 0:0:24]} 40. Qxh4 {[%emt 0:0:13]} Rxh4 {[%emt 0:0:1]} 41. fxg6 {[%emt 0:0:2]
} f6 {[%emt 0:0:18]} 42. Rxd6 {[%emt 0:0:3]} Re4 {[%emt 0:0:0]} 43. R1d2 {[%emt 0:0:12]} Kxg6 {[%emt 0:0:13]} 44. g3 {[%emt 0:0:21]} a5 {[%emt 0:0:15]} 45. Rb6 {[%emt 0:0:23]} Rd4 {[%emt 0:0:6]} 46. Re2 {[%emt 0:0:2]
} Rb4 {[%emt 0:0:13]} 47. Rxb4 {[%emt 0:0:2]} axb4 {[%emt 0:0:0]} 48. Re4 {[%emt 0:0:1]} Rb5 {[%emt 0:0:0]} 49. g4 {[%emt 0:0:17]} f5 {[%emt 0:0:7]} 50. gxf5+ {[%emt 0:0:14]} Kxf5 {[%emt 0:0:1]} 51. Rc4 {[%emt 0:0:1]
} e4 {[%emt 0:0:17]} 52. Kf1 {[%emt 0:0:18]} Kf4 {[%emt 0:0:0]} 53. Rc7 {[%emt 0:0:39]} b6 {[%emt 0:0:28]} 54. Rc6 {[%emt 0:1:35]} e3 {[%emt 0:0:10]
} 55. Rc4+ {[%emt 0:0:17]} Kf3 {[%emt 0:0:5]} 56. fxe3 {[%emt 0:0:1]
} Kxe3 {[%emt 0:0:9]} 57. Kg2 {[%emt 0:0:6]} Ra5 {[%emt 0:0:0]} 58. Rxb4 {[%emt 0:0:3]} Rxa2+ {[%emt 0:0:4]} 59. Kg3 {[%emt 0:0:1]} Ra6 {[%emt 0:0:18]} 60. h4 {[%emt 0:0:2]} Kd3 {[%emt 0:0:9]} 61. h5 {[%emt 0:0:6]
} Ra5 {[%emt 0:0:10]} 62. Rh4 {[%emt 0:0:34]} Kc3 {[%emt 0:0:0]} 63. b4 {[%emt 0:0:6]} Rg5+ {[%emt 0:0:6]} 64. Kf4 {[%emt 0:0:11]} Rg8 {[%emt 0:0:12]} 65. Ke5 {[%emt 0:0:10]} b5 {[%emt 0:0:10]} 66. h6 {[%emt 0:0:0]} Rh8 {[%emt 0:0:12]} 67. h7 {[%emt 0:0:9]} Kb3 {[%emt 0:0:6]} 68. Kf5 {[%emt 0:0:13]} Ka3 {[%emt 0:0:11]} 69. Kg6 {[%emt 0:0:3]} Ka4 {[%emt 0:0:5]
} 70. Kg7 {[%emt 0:0:2]} 1-0

[Event "FIDE World Rapid-ch Open 2018"]
[White "Drygalov, Sergey"]
[Black "Vallejo Pons, Francisco"]
[Site "St. Petersburg"]
[Round "4.56"]
[Annotator "ChessBase"]
[Result "0-1"]
[Date "2018.12.26"]
[WhiteElo "2446"]
[BlackElo "2695"]
[PlyCount "80"]
[TimeControl "900+10"]

1. d4 {[%emt 0:0:0]} d5 {[%emt 0:0:0]} 2. Nf3 {[%emt 0:0:0]} Nf6 {[%emt 0:0:0]
} 3. c4 {[%emt 0:0:0]} dxc4 {[%emt 0:0:0]} 4. e3 {[%emt 0:0:0]} e6 {[%emt 0:0:1]} 5. Bxc4 {[%emt 0:0:3]} c5 {[%emt 0:0:1]} 6. 0-0 {[%emt 0:0:10]
} cxd4 {[%emt 0:0:3]} 7. exd4 {[%emt 0:0:38]} Be7 {[%emt 0:0:0]} 8. Nc3 {[%emt 0:0:2]} 0-0 {[%emt 0:0:2]} 9. Bb3 {[%emt 0:0:39]} Nc6 {[%emt 0:0:12]
} 10. d5 {[%emt 0:1:12]} exd5 {[%emt 0:0:33]} 11. Nxd5 {[%emt 0:0:3]
} Nxd5 {[%emt 0:1:5]} 12. Qxd5 {[%emt 0:0:24]} Qxd5 {[%emt 0:0:0]} 13. Bxd5 {[%emt 0:0:2]} Bf6 {[%emt 0:0:2]} 14. Bg5 {[%emt 0:2:26]} Bxb2 {[%emt 0:0:35]} 15. Rab1 {[%emt 0:0:1]} Ba3 {[%emt 0:0:25]} 16. Rb3 {[%emt 0:2:6]
} Bc5 {[%emt 0:0:22]} 17. Rc1 {[%emt 0:1:14]} Bb6 {[%emt 0:0:0]} 18. Be3 {[%emt 0:0:47]} Ne7 {[%emt 0:5:11]} 19. Bc4 {[%emt 0:1:12]} Bxe3 {[%emt 0:0:52]} 20. Rxe3 {[%emt 0:0:29]} Nc6 {[%emt 0:0:30]} 21. Bd5 {[%emt 0:0:56]
} Bd7 {[%emt 0:2:5]} 22. Ne5 {[%emt 0:3:9]} Nxe5 {[%emt 0:0:0]} 23. Rxe5 {[%emt 0:0:2]} Rac8 {[%emt 0:0:18]} 24. Rb1 {[%emt 0:0:35]} b5 {[%emt 0:1:27]} 25. Re7 {[%emt 0:0:27]} Bf5 {[%emt 0:0:6]} 26. Rbe1 {[%emt 0:0:55]
} a5 {[%emt 0:0:6]} 27. h3 {[%emt 0:0:22]} h5 {[%emt 0:0:42]} 28. Rb7 {[%emt 0:0:28]} Rc5 {[%emt 0:0:19]} 29. Rd1 {[%emt 0:0:39]} Bg6 {[%emt 0:0:22]
} 30. Bf3 {[%emt 0:0:33]} b4 {[%emt 0:0:16]} 31. Ra7 {[%emt 0:0:0]} Bc2 {[%emt 0:1:21]} 32. Rdd7 {[%emt 0:0:13]} b3 {[%emt 0:0:33]} 33. axb3 {[%emt 0:0:8]} Bxb3 {[%emt 0:0:1]} 34. h4 {[%emt 0:0:9]} a4 {[%emt 0:0:4]
} 35. Rd6 {[%emt 0:0:11]} Rfc8 {[%emt 0:0:11]} 36. Raa6 {[%emt 0:0:2]
} g6 {[%emt 0:0:18]} 37. Bc6 {[%emt 0:0:16]} Bc4 {[%emt 0:0:0]} 38. Rb6 {[%emt 0:0:13]} a3 {[%emt 0:0:6]} 39. Bf3 {[%emt 0:0:13]} a2 {[%emt 0:0:7]
} 40. Rd1 {[%emt 0:0:1]} Be6 {[%emt 0:0:14]} 0-1

[Event "FIDE World Rapid-ch Open 2018"]
[White "Inarkiev, Ernesto"]
[Black "Petrov, Nikita"]
[Site "St. Petersburg"]
[Round "4.57"]
[Annotator "ChessBase"]
[Result "1/2-1/2"]
[Date "2018.12.26"]
[WhiteElo "2693"]
[BlackElo "2593"]
[PlyCount "108"]
[TimeControl "900+10"]

1. d4 {[%emt 0:0:0]} Nf6 {[%emt 0:0:0]} 2. c4 {[%emt 0:0:0]} c6 {[%emt 0:0:0]} 3. Nf3 {[%emt 0:0:16]} d5 {[%emt 0:0:0]} 4. g3 {[%emt 0:0:3]} g6 {[%emt 0:0:14]
} 5. Nc3 {[%emt 0:0:20]} Bg7 {[%emt 0:0:10]} 6. Ne5 {[%emt 0:0:0]} Be6 {[%emt 0:1:40]} 7. Bg2 {[%emt 0:1:18]} dxc4 {[%emt 0:0:13]} 8. e4 {[%emt 0:0:1]} Nbd7 {[%emt 0:0:52]} 9. f4 {[%emt 0:0:8]} Nxe5 {[%emt 0:0:0]} 10. fxe5 {[%emt 0:0:1]} Nd7 {[%emt 0:0:16]} 11. 0-0 {[%emt 0:0:32]} Qb6 {[%emt 0:0:31]} 12. Be3 {[%emt 0:1:12]} Qxb2 {[%emt 0:1:30]} 13. Qe1 {[%emt 0:0:2]
} 0-0 {[%emt 0:1:43]} 14. Rb1 {[%emt 0:2:1]} Qa3 {[%emt 0:0:0]} 15. Rxb7 {[%emt 0:0:1]} Rab8 {[%emt 0:2:8]} 16. Rc7 {[%emt 0:0:10]} Nxe5 {[%emt 0:0:26]} 17. dxe5 {[%emt 0:3:39]} Bxe5 {[%emt 0:0:2]} 18. Nd5 {[%emt 0:0:1]
} cxd5 {[%emt 0:0:45]} 19. Rxa7 {[%emt 0:0:2]} Qd6 {[%emt 0:0:0]} 20. exd5 {[%emt 0:1:46]} Bxd5 {[%emt 0:0:1]} 21. Bxd5 {[%emt 0:0:0]} Qxd5 {[%emt 0:0:2]} 22. Rxe7 {[%emt 0:0:1]} Rb2 {[%emt 0:0:29]} 23. Bf2 {[%emt 0:0:15]} Bd4 {[%emt 0:0:29]} 24. Qe4 {[%emt 0:0:1]} Bxf2+ {[%emt 0:2:5]
} 25. Rxf2 {[%emt 0:0:1]} Qd1+ {[%emt 0:0:8]} 26. Qe1 {[%emt 0:0:6]
} Qxe1+ {[%emt 0:2:26]} 27. Rxe1 {[%emt 0:0:0]} Rxf2 {[%emt 0:0:0]} 28. Kxf2 {[%emt 0:0:1]} Ra8 {[%emt 0:0:1]} 29. Re2 {[%emt 0:0:21]} Ra3 {[%emt 0:0:3]} 30. Rc2 {[%emt 0:0:2]} c3 {[%emt 0:0:0]} 31. Ke3 {[%emt 0:0:9]
} Kg7 {[%emt 0:0:3]} 32. Kd4 {[%emt 0:0:22]} f5 {[%emt 0:0:0]} 33. Kc4 {[%emt 0:0:0]} Kf6 {[%emt 0:0:3]} 34. Kb4 {[%emt 0:0:2]} Ra8 {[%emt 0:0:23]} 35. a4 {[%emt 0:0:1]} g5 {[%emt 0:0:12]} 36. Rxc3 {[%emt 0:0:0]} f4 {[%emt 0:0:13]} 37. gxf4 {[%emt 0:0:8]} gxf4 {[%emt 0:0:1]} 38. a5 {[%emt 0:0:1]} Kf5 {[%emt 0:0:16]} 39. Rc7 {[%emt 0:1:48]} h5 {[%emt 0:0:0]} 40. Rc5+ {[%emt 0:3:42]} Kg4 {[%emt 0:0:17]} 41. Rc4 {[%emt 0:0:1]} Rb8+ {[%emt 0:0:36]} 42. Ka4 {[%emt 0:0:1]} Kf3 {[%emt 0:0:18]} 43. a6 {[%emt 0:0:6]
} Ke3 {[%emt 0:0:20]} 44. Rc3+ {[%emt 0:0:11]} Ke2 {[%emt 0:0:0]} 45. Rc5 {[%emt 0:1:31]} f3 {[%emt 0:0:12]} 46. Re5+ {[%emt 0:0:6]} Kd3 {[%emt 0:0:2]} 47. Rxh5 {[%emt 0:0:17]} f2 {[%emt 0:0:25]} 48. Rf5 {[%emt 0:0:2]
} Ke2 {[%emt 0:0:1]} 49. Ka5 {[%emt 0:0:8]} f1=Q {[%emt 0:0:0]} 50. Rxf1 {[%emt 0:0:2]} Kxf1 {[%emt 0:0:1]} 51. a7 {[%emt 0:0:29]} Rh8 {[%emt 0:0:3]} 52. Kb6 {[%emt 0:0:10]} Rh6+ {[%emt 0:0:4]} 53. Kb7 {[%emt 0:0:6]
} Rh7+ {[%emt 0:0:1]} 54. Kb6 {[%emt 0:0:1]} Rh6+ {[%emt 0:0:0]} 1/2-1/2

[Event "FIDE World Rapid-ch Open 2018"]
[White "Kobo, Ori"]
[Black "Piorun, Kacper"]
[Site "St. Petersburg"]
[Round "4.58"]
[Annotator "ChessBase"]
[Result "1/2-1/2"]
[Date "2018.12.26"]
[WhiteElo "2494"]
[BlackElo "2634"]
[PlyCount "155"]
[TimeControl "900+10"]

1. Nf3 {[%emt 0:0:0]} d5 {[%emt 0:0:0]} 2. g3 {[%emt 0:0:0]} Nf6 {[%emt 0:0:11]
} 3. Bg2 {[%emt 0:0:0]} e6 {[%emt 0:0:8]} 4. c4 {[%emt 0:0:0]} Be7 {[%emt 0:0:19]} 5. 0-0 {[%emt 0:0:5]} 0-0 {[%emt 0:0:3]} 6. d4 {[%emt 0:0:3]
} dxc4 {[%emt 0:0:1]} 7. Qc2 {[%emt 0:0:2]} b6 {[%emt 0:0:0]} 8. Nfd2 {[%emt 0:0:34]} Nd5 {[%emt 0:0:25]} 9. Nxc4 {[%emt 0:0:26]} Bb7 {[%emt 0:0:21]} 10. a3 {[%emt 0:0:44]} c5 {[%emt 0:1:38]} 11. dxc5 {[%emt 0:0:0]} Bxc5 {[%emt 0:0:2]} 12. b4 {[%emt 0:1:47]} Be7 {[%emt 0:0:35]} 13. Bb2 {[%emt 0:0:9]} Nd7 {[%emt 0:0:5]} 14. Nbd2 {[%emt 0:0:56]} Rc8 {[%emt 0:0:58]
} 15. Qb3 {[%emt 0:0:12]} Qc7 {[%emt 0:0:53]} 16. Rac1 {[%emt 0:0:20]
} Qb8 {[%emt 0:0:5]} 17. Rfd1 {[%emt 0:0:31]} N5f6 {[%emt 0:0:0]} 18. Bxb7 {[%emt 0:1:3]} Qxb7 {[%emt 0:0:2]} 19. Nf3 {[%emt 0:0:4]
} b5 {[%emt 0:3:3]} 20. Nce5 {[%emt 0:0:52]} a6 {[%emt 0:1:27]} 21. Rxc8 {[%emt 0:0:40]
} Qxc8 {[%emt 0:1:58]} 22. Rc1 {[%emt 0:1:47]} Qb7 {[%emt 0:0:0]} 23. Qc2 {[%emt 0:1:19]} Nxe5 {[%emt 0:0:50]} 24. Nxe5 {[%emt 0:0:8]} Rd8 {[%emt 0:1:27]} 25. Qc6 {[%emt 0:2:4]} Qa7 {[%emt 0:1:53]} 26. Qf3 {[%emt 0:0:24]
} Re8 {[%emt 0:0:44]} 27. e3 {[%emt 0:0:45]} h6 {[%emt 0:0:13]
} 28. h4 {[%emt 0:0:41]} Bf8 {[%emt 0:0:27]} 29. g4 {[%emt 0:0:57]} Nd5 {[%emt 0:0:12]
} 30. e4 {[%emt 0:0:25]} Nb6 {[%emt 0:0:11]} 31. Bd4 {[%emt 0:0:0]} f6 {[%emt 0:0:11]} 32. Ng6 {[%emt 0:0:41]} Qb7 {[%emt 0:0:1]} 33. Bxb6 {[%emt 0:0:8]} Qxb6 {[%emt 0:0:0]} 34. e5 {[%emt 0:0:6]} fxe5 {[%emt 0:0:39]
} 35. Nxe5 {[%emt 0:0:11]} Qa7 {[%emt 0:0:0]} 36. Qc6 {[%emt 0:0:24]
} Qe7 {[%emt 0:0:14]} 37. Ng6 {[%emt 0:0:5]} Qf7 {[%emt 0:0:0]} 38. h5 {[%emt 0:0:10]} Rd8 {[%emt 0:0:9]} 39. Qxa6 {[%emt 0:0:23]} Rd4 {[%emt 0:0:39]} 40. Rc8 {[%emt 0:0:44]} Rxg4+ {[%emt 0:0:1]} 41. Kf1 {[%emt 0:0:2]
} Rxg6 {[%emt 0:0:5]} 42. hxg6 {[%emt 0:0:1]} Qxg6 {[%emt 0:0:0]} 43. Qc6 {[%emt 0:1:1]} Qb1+ {[%emt 0:0:18]} 44. Ke2 {[%emt 0:0:4]} Qb2+ {[%emt 0:0:10]} 45. Kf3 {[%emt 0:0:33]} Qxa3+ {[%emt 0:0:4]} 46. Kg2 {[%emt 0:0:3]
} Qxb4 {[%emt 0:0:3]} 47. Qxe6+ {[%emt 0:0:3]} Kh7 {[%emt 0:0:0]} 48. Qf5+ {[%emt 0:0:5]} Kg8 {[%emt 0:0:2]} 49. Qd5+ {[%emt 0:0:10]
} Kh7 {[%emt 0:0:32]} 50. Qf5+ {[%emt 0:0:5]} Kg8 {[%emt 0:0:1]} 51. Rb8 {[%emt 0:0:23]
} Qd6 {[%emt 0:0:11]} 52. Rxb5 {[%emt 0:0:7]} g6 {[%emt 0:0:0]} 53. Qe4 {[%emt 0:0:10]} Kh7 {[%emt 0:0:16]} 54. Re5 {[%emt 0:0:21]} Qf6 {[%emt 0:0:5]} 55. Rd5 {[%emt 0:0:17]} Bg7 {[%emt 0:0:5]} 56. Qd3 {[%emt 0:0:6]
} Qe6 {[%emt 0:0:4]} 57. Rd6 {[%emt 0:0:10]} Qg4+ {[%emt 0:0:0]} 58. Kf1 {[%emt 0:0:0]} Qh5 {[%emt 0:0:8]} 59. Rd7 {[%emt 0:0:13]} Qh1+ {[%emt 0:0:8]} 60. Ke2 {[%emt 0:0:1]} Qh5+ {[%emt 0:0:2]} 61. Kf1 {[%emt 0:0:2]
} Qh1+ {[%emt 0:0:1]} 62. Ke2 {[%emt 0:0:0]} Qh5+ {[%emt 0:0:0]} 63. Ke1 {[%emt 0:0:13]} Qe5+ {[%emt 0:0:45]} 64. Kf1 {[%emt 0:0:6]} Qa1+ {[%emt 0:0:1]} 65. Kg2 {[%emt 0:0:4]} Qf6 {[%emt 0:0:2]} 66. Qd5 {[%emt 0:0:14]
} h5 {[%emt 0:0:37]} 67. Rd8 {[%emt 0:0:14]} Qf4 {[%emt 0:0:0]} 68. Rd7 {[%emt 0:0:26]} Qg4+ {[%emt 0:0:13]} 69. Kf1 {[%emt 0:0:1]} Qh3+ {[%emt 0:0:1]} 70. Ke2 {[%emt 0:0:4]} Qg4+ {[%emt 0:0:12]} 71. Ke1 {[%emt 0:0:25]
} Qg1+ {[%emt 0:0:4]} 72. Ke2 {[%emt 0:0:2]} Qg4+ {[%emt 0:0:0]} 73. Kd2 {[%emt 0:0:22]} Kh6 {[%emt 0:0:25]} 74. Qf7 {[%emt 0:0:12]} Qb4+ {[%emt 0:0:20]} 75. Ke2 {[%emt 0:0:7]} Qe4+ {[%emt 0:0:2]} 76. Kf1 {[%emt 0:0:9]
} Qh1+ {[%emt 0:0:3]} 77. Ke2 {[%emt 0:0:1]} Qe4+ {[%emt 0:0:0]} 78. Kf1 {[%emt 0:0:3]} 1/2-1/2